bitfinex-derivatives/quotes_BTCF0:USTF0_20250313
["timestamp","ask_amount","ask_price","bid_price","bid_amount"]
[1741886022500,0.14062133,80584.0,80583.0,0.0829]
[1741886022896,0.13962133,80584.0,80583.0,0.0829]
[1741886023102,0.14162133,80584.0,80583.0,0.0829]
[1741886024092,0.1311164,80584.0,80583.0,0.0829]
[1741886024395,0.14143622,80584.0,80583.0,0.0829]
[1741886024800,0.14043622,80584.0,80583.0,0.0829]
[1741886025004,0.14043622,80584.0,80583.0,0.2070179]
[1741886025203,0.1301164,80584.0,80583.0,0.2070179]
[1741886025506,0.004,80584.0,80583.0,0.22001186]
[1741886025705,0.006,80584.0,80583.0,0.30211186]
[1741886026114,0.003,80584.0,80583.0,0.30211186]
[1741886026405,0.1251164,80584.0,80583.0,0.17799396]
[1741886026605,0.1241164,80584.0,80583.0,0.17799396]
[1741886027311,0.1241164,80584.0,80583.0,0.17899396]
[1741886027808,0.1241164,80584.0,80583.0,0.0839]
[1741886028010,0.1241287,80576.0,80575.0,0.0001861]
[1741886028206,0.1241287,80576.0,80575.0,0.1243164]
[1741886028400,0.1241201,80584.0,80583.0,0.0620582]
[1741886028604,0.1241114,80588.0,80587.0,0.1241102]
[1741886028902,0.1241079,80590.0,80589.0,0.1241072]
[1741886029109,0.1241079,80590.0,80588.0,0.0620544]
[1741886029110,0.0001857,80594.0,80593.0,0.1241025]
[1741886029307,0.1242867,80594.0,80593.0,0.1241025]
[1741886029803,0.1861576,80593.0,80592.0,0.124103]
[1741886030211,0.1241133,80587.0,80586.0,0.186161]
[1741886030513,0.1241133,80587.0,80586.0,0.28391122]
[1741886030696,0.1241133,80587.0,80586.0,0.15980482]
[1741886030899,0.1241272,80577.0,80576.0,0.12598992]
[1741886031206,0.1241272,80577.0,80576.0,0.13854665]
[1741886031405,0.01020294,80596.0,80576.0,0.08706172]
[1741886031611,0.1861722,80587.0,80586.0,0.1241087]
[1741886031807,0.1881722,80587.0,80586.0,0.1241087]
[1741886032205,0.002,80587.0,80586.0,0.1241087]
[1741886032412,0.1241111,80590.0,80589.0,0.1861564]
[1741886033214,0.0001857,80594.0,80593.0,0.1241025]
[1741886033409,0.0001857,80594.0,80593.0,0.13671573]
[1741886034304,0.1242867,80594.0,80593.0,0.13671573]
[1741886035199,0.1242867,80594.0,80590.0,0.1440528]
[1741886035200,0.1241056,80591.0,80590.0,0.082]
[1741886035712,0.1221056,80591.0,80590.0,0.082]
[1741886036110,0.1221056,80591.0,80590.0,0.2061072]
[1741886036414,0.1241056,80591.0,80590.0,0.3302117]
[1741886037007,0.1271056,80591.0,80590.0,0.34289346]
[1741886037212,0.1271056,80591.0,80590.0,0.09468176]
[1741886037409,0.1271056,80591.0,80590.0,0.21878896]
[1741886037603,0.1311056,80591.0,80590.0,0.2061072]
[1741886038001,0.1311056,80591.0,80590.0,0.09470592]
[1741886038216,0.1301056,80591.0,80590.0,0.09470592]
[1741886038514,0.1301056,80591.0,80590.0,0.01270592]
[1741886038911,0.1301056,80591.0,80590.0,0.15058436]
[1741886039114,0.1271056,80591.0,80590.0,0.15058436]
[1741886039309,0.1301056,80591.0,80590.0,0.15058436]
[1741886039512,0.006,80591.0,80590.0,0.17101298]
[1741886039919,0.10578641,80610.0,80604.0,0.1240856]
[1741886040216,0.10578641,80610.0,80604.0,0.1574556]
[1741886040404,0.10578641,80610.0,80604.0,0.15748001]
[1741886040608,0.1240795,80608.0,80604.0,0.15748001]
[1741886040820,0.01058641,80610.0,80604.0,0.17141763]
[1741886041012,0.21948421,80611.0,80604.0,0.17141763]
[1741886041207,0.1240821,80607.0,80604.0,0.17141763]
[1741886041410,0.21948421,80611.0,80604.0,0.17141763]
[1741886041716,0.30693363,80605.0,80604.0,0.17141763]
[1741886042214,0.30693363,80605.0,80604.0,0.15072914]
[1741886042403,0.30693363,80605.0,80604.0,0.02664354]
[1741886042604,0.30693363,80605.0,80604.0,0.02764354]
[1741886042809,0.18284953,80605.0,80604.0,0.13779152]
[1741886043006,0.00936149,80616.0,80604.0,0.13779152]
[1741886043007,0.18284953,80612.0,80611.0,0.1240748]
[1741886043207,0.30692283,80612.0,80611.0,0.13675873]
[1741886043809,0.30692283,80612.0,80611.0,0.15056199]
[1741886044009,0.30692283,80612.0,80611.0,0.02648719]
[1741886044223,0.30692283,80612.0,80611.0,0.01268393]
[1741886044425,0.30692283,80612.0,80611.0,0.01277289]
[1741886044716,0.38592283,80612.0,80611.0,0.01277289]
[1741886044916,0.1240887,80602.0,80601.0,0.2123896]
[1741886045112,0.1240887,80602.0,80601.0,0.26503162]
[1741886045308,0.0620382,80610.0,80607.0,0.0620405]
[1741886045514,0.2166779,80609.0,80608.0,0.22502307]
[1741886045715,0.0926,80609.0,80608.0,0.22502307]
[1741886046225,0.2166779,80609.0,80608.0,0.22502307]
[1741886046424,0.1240779,80609.0,80608.0,0.22502296]
[1741886046623,0.1240779,80609.0,80608.0,0.30772296]
[1741886047511,0.1240779,80609.0,80608.0,0.09534356]
[1741886047714,0.2023779,80609.0,80608.0,0.01264356]
[1741886047914,0.1861345,80603.0,80602.0,0.1240871]
[1741886048114,0.1861345,80603.0,80602.0,0.30866976]
[1741886048418,0.2826345,80603.0,80602.0,0.30866976]
[1741886049015,0.2826345,80603.0,80602.0,0.09510716]
[1741886049326,0.3594345,80603.0,80602.0,0.09510716]
[1741886049621,0.3604345,80603.0,80602.0,0.09510716]
[1741886050010,0.3624345,80603.0,80602.0,0.18450716]
[1741886050221,0.3624345,80603.0,80602.0,0.09510716]
[1741886050621,0.3604345,80603.0,80602.0,0.09510716]
[1741886050822,0.3634345,80603.0,80602.0,0.09510716]
[1741886051219,0.3634345,80603.0,80596.0,0.0001861]
[1741886051220,0.1240964,80597.0,80596.0,0.0001861]
[1741886051526,0.18106776,80597.0,80562.0,0.010643]
[1741886051828,0.18106776,80597.0,80572.0,0.0826]
[1741886051829,0.1241272,80577.0,80572.0,0.0826]
[1741886052131,0.16351496,80577.0,80572.0,0.0826]
[1741886052425,0.1241457,80565.0,80564.0,0.3486915]
[1741886052817,0.062072,80567.0,80564.0,0.3486915]
[1741886053129,0.1862161,80567.0,80566.0,0.1241441]
[1741886053620,0.1862161,80567.0,80566.0,0.2245441]
[1741886054031,0.1842161,80567.0,80566.0,0.2245441]
[1741886055514,0.1576694,80570.0,80566.0,0.1014]
[1741886055718,0.1241404,80569.0,80568.0,0.1241395]
[1741886056121,0.2193404,80569.0,80568.0,0.1241395]
[1741886056324,0.40218993,80569.0,80568.0,0.1241395]
[1741886056918,0.27804953,80569.0,80568.0,0.1241395]
[1741886057120,0.18284953,80569.0,80568.0,0.1241395]
[1741886057519,0.18284953,80569.0,80568.0,0.14422047]
[1741886058320,0.18284953,80569.0,80568.0,0.18422047]
[1741886058520,0.18284953,80569.0,80568.0,0.18522047]
[1741886059118,0.18284953,80569.0,80568.0,0.1651395]
[1741886059119,0.30698903,80569.0,80568.0,0.1651395]
[1741886059323,0.30698903,80569.0,80566.0,0.0620713]
[1741886059324,0.1211457,80565.0,80564.0,0.3899713]
[1741886059523,0.1862157,80567.0,80566.0,0.1241441]
[1741886059826,0.0620704,80569.0,80564.0,0.14168]
[1741886060017,0.1241457,80565.0,80564.0,0.14168]
[1741886060220,0.1221518,80561.0,80560.0,0.1241525]
[1741886060625,0.1241549,80560.0,80559.0,0.1241545]
[1741886060825,0.2204549,80560.0,80559.0,0.1241545]
[1741886061036,0.1241504,80562.0,80561.0,0.1241518]
[1741886061333,0.0620719,80567.0,80563.0,0.062074]
[1741886061532,0.14168,80587.0,80566.0,0.0620713]
[1741886061831,0.0963,80583.0,80568.0,0.1241411]
[1741886062037,0.21948421,80589.0,80578.0,0.1241256]
[1741886062219,0.21948421,80589.0,80583.0,0.1241179]
[1741886062419,0.21948421,80589.0,80583.0,0.14391836]
[1741886062722,0.21948421,80589.0,80583.0,0.26804173]
[1741886063130,0.21948421,80589.0,80583.0,0.27844582]
[1741886063346,0.28153861,80589.0,80583.0,0.29092253]
[1741886063531,0.21948421,80584.0,80583.0,0.29092253]
[1741886063933,0.0620313,80619.0,80583.0,0.64560463]
[1741886064128,0.12595273,80601.0,80600.0,0.1240918]
[1741886064328,0.12595273,80601.0,80600.0,0.13656851]
[1741886065328,0.12595273,80601.0,80600.0,0.1240918]
[1741886065830,0.12895273,80601.0,80600.0,0.1240918]
[1741886066434,0.13095273,80601.0,80600.0,0.1240918]
[1741886066735,0.00686173,80601.0,80600.0,0.1240918]
[1741886066937,0.00486173,80601.0,80600.0,0.1240918]
[1741886067139,0.13195193,80601.0,80600.0,0.13672957]
[1741886067330,0.13195193,80601.0,80600.0,0.1240918]
[1741886067728,0.00786173,80601.0,80600.0,0.1240918]
[1741886067923,0.00786173,80601.0,80600.0,0.13672874]
[1741886068133,0.00586173,80601.0,80600.0,0.13672549]
[1741886068335,0.00286173,80601.0,80600.0,0.23802549]
[1741886068537,0.00286173,80601.0,80600.0,0.25823578]
[1741886069035,0.12695193,80601.0,80600.0,0.25823505]
[1741886069335,0.00386173,80601.0,80600.0,0.23702549]
[1741886069549,0.002,80601.0,80600.0,0.38125456]
[1741886069836,0.002,80601.0,80600.0,0.27091721]
[1741886070338,0.1260902,80601.0,80600.0,0.15043614]
[1741886070533,0.1260902,80601.0,80600.0,0.29211614]
[1741886070933,0.1260902,80601.0,80600.0,0.27838479]
[1741886071340,0.1250902,80601.0,80600.0,0.2657718]
[1741886071536,0.2289902,80601.0,80600.0,0.2657718]
[1741886072130,0.2289902,80601.0,80600.0,0.1240918]
[1741886072330,0.2299902,80601.0,80600.0,0.1240918]
[1741886072842,0.2299902,80601.0,80600.0,0.2250918]
[1741886073038,0.23910811,80601.0,80600.0,0.2250918]
[1741886073335,0.2309902,80601.0,80600.0,0.2250918]
[1741886073735,0.1240918,80600.0,80599.0,0.1027]
[1741886073936,0.1240918,80600.0,80593.0,0.4088]
[1741886073937,0.124101,80594.0,80593.0,0.4088]
[1741886074132,0.124101,80594.0,80593.0,0.5329025]
[1741886074442,0.124101,80594.0,80593.0,0.4088]
[1741886074643,0.1241025,80593.0,80592.0,0.0001861]
[1741886074828,0.1241025,80593.0,80592.0,0.1242902]
[1741886075032,0.1241025,80593.0,80592.0,0.0001861]
[1741886075439,0.2043,80594.0,80571.0,0.00186143]
[1741886075440,0.21791261,80590.0,80571.0,0.00186143]
[1741886075738,0.1241272,80577.0,80576.0,0.1007]
[1741886075945,0.0620594,80583.0,80571.0,0.00186143]
[1741886075946,0.1241349,80572.0,80571.0,0.00186143]
[1741886076242,0.1241349,80572.0,80571.0,0.12599783]
[1741886076736,0.0001861,80580.0,80579.0,0.1241241]
[1741886077432,0.1243102,80580.0,80579.0,0.1241241]
[1741886077731,0.1243102,80580.0,80579.0,0.3164241]
[1741886078351,0.2207102,80580.0,80579.0,0.3164241]
[1741886078532,0.2227102,80580.0,80579.0,0.3164241]
[1741886078836,0.2247102,80580.0,80579.0,0.0949]
[1741886079240,0.2227102,80580.0,80579.0,0.0949]
[1741886079440,0.1005861,80580.0,80572.0,0.0620672]
[1741886079640,0.1862113,80573.0,80572.0,0.2482616]
[1741886079843,0.1862113,80573.0,80572.0,0.2604583]
[1741886080338,0.0041861,80580.0,80572.0,0.2604583]
[1741886080339,0.0041861,80580.0,80579.0,0.1241241]
[1741886080533,0.1283087,80580.0,80579.0,0.1241241]
[1741886080733,0.1283087,80580.0,80579.0,0.3257241]
[1741886080935,0.1243087,80580.0,80579.0,0.3257241]
[1741886081135,0.1273087,80580.0,80579.0,0.3257241]
[1741886081642,0.1293087,80580.0,80579.0,0.3257241]
[1741886082341,0.1263087,80580.0,80579.0,0.3257241]
[1741886082539,0.1283087,80580.0,80579.0,0.3257241]
[1741886083742,0.1283087,80580.0,80579.0,0.2016]
[1741886083943,0.1283087,80580.0,80579.0,0.3257241]
[1741886084845,0.1263087,80580.0,80579.0,0.3257241]
[1741886085037,0.1293087,80580.0,80579.0,0.3257241]
[1741886085641,0.1293087,80580.0,80579.0,0.0983]
[1741886085862,0.0051861,80580.0,80571.0,0.097]
[1741886086048,0.1241349,80573.0,80572.0,0.1241327]
[1741886086245,0.1241349,80573.0,80572.0,0.23341302]
[1741886086446,0.1003,80574.0,80573.0,0.1241333]
[1741886086642,0.1023,80579.0,80578.0,0.1241256]
[1741886086836,0.0021861,80580.0,80578.0,0.1241256]
[1741886086837,0.0041861,80580.0,80579.0,0.1241241]
[1741886087042,0.18337611,80588.0,80587.0,0.1241118]
[1741886087250,0.18337611,80588.0,80587.0,0.15632652]
[1741886087642,0.18337611,80588.0,80587.0,0.26252652]
[1741886088242,0.18337611,80588.0,80587.0,0.38661524]
[1741886088952,0.18337611,80588.0,80587.0,0.39750572]
[1741886089142,0.18337611,80588.0,80587.0,0.39779442]
[1741886089343,0.18337611,80588.0,80587.0,0.39879442]
[1741886091145,0.18337611,80588.0,80587.0,0.39875438]
[1741886091352,0.18337611,80611.0,80596.0,0.1240979]
[1741886091650,0.18337611,80611.0,80599.0,0.0620462]
[1741886091651,0.1240918,80600.0,80599.0,0.0620462]
[1741886091845,0.1240918,80600.0,80599.0,0.01248581]
[1741886092337,0.1241041,80592.0,80591.0,0.0001861]
[1741886092537,0.1241041,80592.0,80591.0,0.01256091]
[1741886092846,0.1241041,80592.0,80591.0,0.0001861]
[1741886093453,0.1241041,80592.0,80591.0,0.1242917]
[1741886093753,0.1241041,80592.0,80591.0,0.23816233]
[1741886093939,0.2243011,80594.0,80593.0,0.1241025]
[1741886094144,0.2243011,80594.0,80593.0,0.13647353]
[1741886094452,0.2243011,80594.0,80593.0,0.13651862]
[1741886095444,0.18337611,80595.0,80593.0,0.13651862]
[1741886095652,0.18337611,80595.0,80594.0,0.13651712]
[1741886095952,0.30747561,80595.0,80594.0,0.23761712]
[1741886096144,0.30747561,80595.0,80594.0,0.25143936]
[1741886096459,0.30747561,80595.0,80594.0,0.27195356]
[1741886096646,0.30747561,80595.0,80594.0,0.37055356]
[1741886097048,0.30747561,80595.0,80594.0,0.35003936]
[1741886097449,0.30747561,80595.0,80594.0,0.22593836]
[1741886097755,0.30747561,80595.0,80594.0,0.33621712]
[1741886097942,0.34690931,80595.0,80594.0,0.33621712]
[1741886098149,0.30747561,80595.0,80594.0,0.33621712]
[1741886098554,0.30847561,80595.0,80594.0,0.33621712]
[1741886099046,0.1250995,80595.0,80594.0,0.35681221]
[1741886099246,0.1250995,80595.0,80594.0,0.33621712]
[1741886100244,0.1250995,80595.0,80594.0,0.25598994]
[1741886100453,0.1250995,80595.0,80594.0,0.25605082]
[1741886100758,0.1250995,80595.0,80594.0,0.25608888]
[1741886101054,0.1250995,80595.0,80594.0,0.24936236]
[1741886101553,0.001,80595.0,80594.0,0.26974236]
[1741886101856,0.001,80595.0,80594.0,0.02666136]
[1741886101857,0.1250995,80595.0,80594.0,0.02666136]
[1741886102152,0.1241056,80591.0,80590.0,0.00186139]
[1741886102454,0.16356329,80591.0,80590.0,0.00186139]
[1741886102651,0.1862062,80572.0,80571.0,0.186192]
[1741886102853,0.0620682,80572.0,80571.0,0.33069466]
[1741886103048,0.124133,80574.0,80573.0,0.1241318]
[1741886103355,0.186194,80578.0,80577.0,0.1241241]
[1741886103553,0.186194,80578.0,80577.0,0.14449876]
[1741886103752,0.186194,80578.0,80577.0,0.02037466]
[1741886103951,0.186194,80578.0,80577.0,0.02031939]
[1741886103952,0.186189,80578.0,80577.0,0.02031939]
[1741886104149,0.2004,80579.0,80560.0,0.29787884]
[1741886104348,0.1241457,80566.0,80565.0,0.1241411]
[1741886104546,0.1201457,80566.0,80565.0,0.47110199]
[1741886104751,0.1201457,80566.0,80565.0,0.11861829]
[1741886104951,0.1201457,80566.0,80563.0,0.0001861]
[1741886104952,0.1241472,80564.0,80563.0,0.0001861]
[1741886105155,0.16363375,80564.0,80563.0,0.0001861]
[1741886105359,0.16363375,80564.0,80560.0,0.29787884]
[1741886105360,0.1241518,80561.0,80560.0,0.24025014]
[1741886105653,0.1241518,80561.0,80540.0,0.44215101]
[1741886105654,0.1241767,80545.0,80543.0,0.0620891]
[1741886105860,0.27036455,80544.0,80543.0,0.1862687]
[1741886106046,0.27036455,80544.0,80543.0,0.3877687]
[1741886106248,0.230878,80544.0,80543.0,0.2635891]
[1741886107150,0.228878,80544.0,80543.0,0.0983]
[1741886107350,0.230878,80544.0,80543.0,0.2224796]
[1741886107950,0.233878,80544.0,80543.0,0.2224796]
[1741886108146,0.234878,80544.0,80543.0,0.2224796]
[1741886108352,0.234878,80544.0,80543.0,0.0983]
[1741886108856,0.233878,80544.0,80543.0,0.0983]
[1741886109053,0.1241858,80540.0,80539.0,0.1241845]
[1741886109253,0.1241858,80540.0,80539.0,0.106]
[1741886109755,0.2273858,80540.0,80539.0,0.106]
[1741886110162,0.1241904,80536.0,80535.0,0.44233723]
[1741886110854,0.1241904,80536.0,80535.0,0.00018622]
[1741886111354,0.1241904,80536.0,80535.0,2e-08]
[1741886111562,0.1241904,80536.0,80530.0,0.00014812]
[1741886111563,0.0973,80539.0,80496.0,0.01864]
[1741886111857,0.11401762,80540.0,80494.0,0.01864]
[1741886111858,0.0621049,80524.0,80510.0,0.14538446]
[1741886112063,0.2230136,80523.0,80522.0,0.124212]
[1741886112365,0.1242151,80521.0,80520.0,0.1242142]
[1741886112546,0.12436705,80521.0,80520.0,0.1242142]
[1741886112751,0.22316705,80521.0,80520.0,0.1242142]
[1741886113050,0.1242181,80519.0,80518.0,0.1242171]
[1741886114158,0.1242197,80517.0,80516.0,0.186331]
[1741886114550,0.1242173,80519.0,80518.0,0.1242166]
[1741886114748,0.001,80519.0,80518.0,0.1252166]
[1741886116056,0.00018622,80529.0,80528.0,0.1242027]
[1741886116354,0.1241769,80545.0,80544.0,0.1241765]
[1741886116556,0.1241769,80545.0,80539.0,0.124184]
[1741886116557,0.1241859,80540.0,80539.0,0.124184]
[1741886116764,0.104,80546.0,80542.0,0.0620901]
[1741886116950,0.01074825,80564.0,80547.0,0.1241734]
[1741886117259,0.0620766,80561.0,80547.0,0.1241734]
[1741886117464,0.20988622,80556.0,80545.0,0.14164]
[1741886117658,0.1241827,80541.0,80540.0,0.4088]
[1741886118056,0.13518945,80541.0,80540.0,0.4088]
[1741886118665,0.34198945,80541.0,80540.0,0.4088]
[1741886118863,0.21780675,80541.0,80539.0,0.00018622]
[1741886119067,0.1241842,80540.0,80539.0,0.00018622]
[1741886119454,0.2068,80540.0,80523.0,0.14164]
[1741886119668,0.1232089,80524.0,80523.0,0.14164]
[1741886119867,0.1232089,80524.0,80523.0,0.2658504]
[1741886120369,0.1232089,80524.0,80523.0,0.14164]
[1741886120568,0.3284089,80524.0,80523.0,0.2658504]
[1741886120870,0.2283089,80524.0,80523.0,0.2658504]
[1741886121165,0.2323089,80524.0,80523.0,0.2658504]
[1741886122265,0.2343089,80524.0,80523.0,0.2658504]
[1741886122671,0.2343089,80524.0,80523.0,0.14164]
[1741886123171,0.0621059,80523.0,80517.0,0.099]
[1741886123379,0.1242181,80519.0,80518.0,0.124218]
[1741886123765,0.0621059,80523.0,80518.0,0.01]
[1741886123971,0.1242146,80521.0,80520.0,0.124212]
[1741886124157,0.1242146,80521.0,80520.0,0.232212]
[1741886124363,0.001,80523.0,80522.0,0.124212]
[1741886124867,0.1252104,80523.0,80522.0,0.232212]
[1741886125061,0.1262104,80523.0,80522.0,0.232212]
[1741886125463,0.002,80523.0,80501.0,0.4088]
[1741886125667,0.0621086,80519.0,80515.0,0.00018622]
[1741886125874,0.1242212,80516.0,80515.0,0.00018622]
[1741886126060,0.2698098,80518.0,80500.0,0.1]
[1741886126263,0.1073,80522.0,80502.0,0.1071]
[1741886126264,0.1242413,80503.0,80502.0,0.1071]
[1741886126461,0.1242413,80503.0,80500.0,0.1]
[1741886126661,0.3330428,80502.0,80501.0,0.1082]
[1741886127171,0.1242444,80501.0,80500.0,0.1]
[1741886127574,0.3330444,80501.0,80500.0,0.1]
[1741886127868,0.1242521,80496.0,80493.0,0.00018622]
[1741886128076,0.1242552,80494.0,80493.0,0.00018622]
[1741886128469,0.124266,80487.0,80486.0,0.00011148]
[1741886128659,0.122266,80487.0,80486.0,0.00011148]
[1741886128864,0.0621338,80486.0,80452.0,0.14168]
[1741886129070,0.1023,80485.0,80475.0,0.1242785]
[1741886129271,0.1242814,80477.0,80476.0,0.2092]
[1741886129971,0.12441735,80477.0,80476.0,0.2092]
[1741886130166,0.12241735,80477.0,80476.0,0.2092]
[1741886130967,0.1222938,80469.0,80468.0,0.00018634]
[1741886131265,0.1192938,80469.0,80468.0,0.00018634]
[1741886131666,0.1162938,80469.0,80468.0,0.00018634]
[1741886132073,0.3192938,80469.0,80468.0,0.00118634]
[1741886132269,0.3192938,80469.0,80468.0,0.00618634]
[1741886132472,0.31942975,80469.0,80468.0,0.00618634]
[1741886132667,0.1243139,80456.0,80455.0,0.1077]
[1741886133984,0.1253139,80456.0,80455.0,0.1077]
[1741886134475,0.1263139,80456.0,80455.0,0.1077]
[1741886134678,0.002,80456.0,80455.0,0.2320154]
[1741886135081,5e-08,80469.0,80468.0,0.1242953]
[1741886135279,0.00168,80488.0,80487.0,0.124266]
[1741886135470,0.14614111,80489.0,80488.0,0.1242644]
[1741886135671,0.00186398,80505.0,80497.0,0.1242505]
[1741886135978,0.00186398,80505.0,80497.0,0.39609729]
[1741886136672,0.34439899,80498.0,80497.0,0.13623117]
[1741886136874,0.124249,80498.0,80497.0,0.01198067]
[1741886137072,0.124249,80498.0,80495.0,0.1625267]
[1741886137073,0.1242521,80496.0,80495.0,0.1004]
[1741886137471,0.1242521,80496.0,80495.0,0.2246536]
[1741886137779,0.1035,80499.0,80498.0,0.124249]
[1741886138185,0.2277475,80499.0,80498.0,0.124249]
[1741886138566,0.2277475,80499.0,80496.0,0.1652258]
[1741886138567,0.1242505,80497.0,80496.0,0.1652258]
[1741886138871,0.1242586,80493.0,80490.0,0.13540282]
[1741886139076,0.25444621,80500.0,80491.0,0.1242598]
[1741886139077,0.0984,80492.0,80491.0,0.1242598]
[1741886139375,0.0984,80497.0,80496.0,0.1242521]
[1741886139584,0.25444621,80500.0,80499.0,0.1242475]
[1741886139885,0.25444621,80500.0,80499.0,0.14168]
[1741886139886,0.37869211,80500.0,80499.0,0.14168]
[1741886140176,0.37869211,80500.0,80482.0,0.4088]
[1741886140177,0.0621252,80497.0,80479.0,0.0621389]
[1741886140378,0.0621252,80497.0,80475.0,0.06400556]
[1741886140379,0.1242614,80490.0,80475.0,0.00186396]
[1741886140574,0.1242614,80490.0,80485.0,0.14168]
[1741886140779,0.1242614,80490.0,80486.0,0.0992]
[1741886140977,0.1242614,80490.0,80472.0,0.14168]
[1741886141178,0.2226614,80490.0,80476.0,0.0992]
[1741886141668,0.2226614,80490.0,80483.0,0.1242711]
[1741886141867,0.2256614,80490.0,80484.0,0.2313696]
[1741886142080,0.1014,80490.0,80489.0,0.12444924]
[1741886142271,0.003,80490.0,80489.0,0.12444924]
[1741886142470,0.003,80490.0,80489.0,0.23154924]
[1741886142675,0.003,80490.0,80489.0,0.2435421]
[1741886143581,0.1025,80504.0,80490.0,0.0621305]
[1741886143783,0.0621229,80500.0,80491.0,0.01199286]
[1741886143981,0.0621229,80500.0,80499.0,0.1242459]
[1741886144279,0.00018634,80506.0,80505.0,0.1242382]
[1741886144589,0.12442304,80506.0,80505.0,0.13623533]
[1741886145077,0.00018634,80506.0,80505.0,0.13623533]
[1741886145281,0.1242151,80520.0,80519.0,0.1242149]
[1741886145477,0.1242151,80520.0,80505.0,0.15367713]
[1741886145478,0.2046,80526.0,80518.0,0.1062]
[1741886145785,0.1242166,80519.0,80518.0,0.1062]
[1741886146581,0.1242289,80511.0,80510.0,0.00018634]
[1741886146774,0.1242289,80511.0,80510.0,0.01229184]
[1741886147984,0.1242289,80511.0,80510.0,0.13652234]
[1741886148284,0.1242142,80522.0,80521.0,0.1242111]
[1741886148477,0.1863311,80518.0,80517.0,0.1242178]
[1741886148672,0.1863311,80518.0,80517.0,0.01206594]
[1741886149084,0.1863311,80518.0,80517.0,0.11576594]
[1741886150872,0.0621091,80518.0,80517.0,0.23998564]
[1741886151474,0.0661091,80518.0,80517.0,0.23998564]
[1741886151688,0.0661091,80518.0,80517.0,0.11576594]
[1741886152092,0.0661091,80518.0,80510.0,0.00018634]
[1741886152093,0.1242289,80511.0,80510.0,0.00018634]
[1741886152281,0.1242289,80511.0,80510.0,0.0123505]
[1741886152985,0.3378289,80511.0,80510.0,0.00018634]
[1741886154180,0.3378289,80511.0,80510.0,0.12441684]
[1741886154181,0.2317289,80511.0,80510.0,0.12441684]
[1741886154491,0.2357289,80511.0,80510.0,0.00018634]
[1741886154679,0.1242583,80492.0,80491.0,0.248517]
[1741886154880,0.1242583,80492.0,80491.0,0.26055513]
[1741886155284,0.1242583,80492.0,80491.0,0.01203813]
[1741886155482,0.1242583,80492.0,80491.0,0.13629793]
[1741886155889,0.1242629,80489.0,80488.0,0.00186368]
[1741886156185,0.13569399,80489.0,80488.0,0.00186368]
[1741886156587,0.1242706,80484.0,80483.0,0.00018634]
[1741886157889,0.1242706,80484.0,80483.0,0.20018634]
[1741886158086,0.00018634,80500.0,80491.0,0.1242598]
[1741886158288,0.01102994,80493.0,80487.0,0.124265]
[1741886158498,0.1242629,80489.0,80488.0,0.1969]
[1741886158791,0.1242629,80489.0,80488.0,0.3211644]
[1741886158993,0.1242629,80489.0,80488.0,0.1969]
[1741886159188,0.1649306,80491.0,80490.0,0.1242614]
[1741886159389,0.1242629,80489.0,80488.0,0.0621315]
[1741886159600,0.1242706,80484.0,80483.0,0.00018634]
[1741886160295,0.1242706,80484.0,80483.0,4e-08]
[1741886160494,0.1038,80484.0,80463.0,0.0989]
[1741886160795,0.001,80489.0,80488.0,0.1242644]
[1741886161303,0.12425,80498.0,80497.0,0.1242475]
[1741886161595,0.21812974,80530.0,80488.0,0.42162974]
[1741886161596,0.1001,80504.0,80488.0,0.42162974]
[1741886161894,0.1001,80504.0,80503.0,0.1242413]
[1741886162497,0.1242397,80504.0,80503.0,0.0621199]
[1741886162793,0.1019,80505.0,80504.0,0.1242397]
[1741886162994,0.00018634,80506.0,80505.0,0.1242382]
[1741886163295,0.23019757,80517.0,80516.0,0.1242212]
[1741886163899,0.1242212,80516.0,80515.0,0.3304216]
[1741886164094,0.2261212,80516.0,80515.0,0.3304216]
[1741886164395,0.1242201,80518.0,80517.0,0.1242154]
[1741886164692,0.1242212,80516.0,80515.0,0.2062]
[1741886164899,0.1084,80517.0,80507.0,0.00018634]
[1741886165090,0.0621131,80513.0,80512.0,0.124226]
[1741886165497,0.1242274,80512.0,80511.0,0.2291285]
[1741886165893,0.1242274,80512.0,80511.0,0.1049]
[1741886166098,0.003,80517.0,80516.0,0.1242212]
[1741886166495,0.001,80517.0,80516.0,0.1242212]
[1741886166699,0.001,80517.0,80516.0,0.2258212]
[1741886166999,0.00018634,80524.0,80523.0,0.1242104]
[1741886167200,0.00949539,80536.0,80532.0,0.1241965]
[1741886167702,0.00949539,80536.0,80530.0,0.1043]
[1741886167703,0.1241981,80531.0,80530.0,0.1043]
[1741886167900,0.1241981,80531.0,80530.0,0.2284996]
[1741886168197,0.1241981,80531.0,80530.0,0.1043]
[1741886168410,0.2271981,80531.0,80530.0,0.1043]
[1741886169503,0.2321981,80531.0,80530.0,0.1043]
[1741886169899,0.1242104,80523.0,80522.0,0.00018634]
[1741886170804,0.3217104,80523.0,80522.0,0.00018634]
[1741886171708,0.3257104,80523.0,80522.0,0.00018634]
[1741886172497,0.3297104,80523.0,80522.0,0.00018634]
[1741886174604,0.4797104,80523.0,80522.0,0.00018634]
[1741886174802,0.1242413,80503.0,80499.0,0.1242468]
[1741886175108,0.18636,80506.0,80505.0,0.1242361]
[1741886175604,0.1242397,80504.0,80503.0,0.06212]
[1741886176209,0.1863603,80507.0,80506.0,0.124234]
[1741886176508,0.1863611,80505.0,80504.0,0.1242387]
[1741886176905,0.1995,80511.0,80504.0,0.1242387]
[1741886177106,0.124235,80510.0,80509.0,0.1242305]
[1741886177301,0.124235,80510.0,80503.0,0.0621206]
[1741886177302,0.1242336,80508.0,80507.0,0.1863514]
[1741886177502,0.0621175,80507.0,80503.0,0.003]
[1741886177702,0.1242397,80504.0,80503.0,0.003]
[1741886177902,0.1242397,80504.0,80503.0,0.002]
[1741886178105,0.003,80505.0,80503.0,0.002]
[1741886178311,0.1272382,80505.0,80504.0,0.1242397]
[1741886178606,0.1242397,80504.0,80503.0,0.002]
[1741886179006,0.2265397,80504.0,80503.0,0.002]
[1741886179410,0.003,80505.0,80504.0,0.1242397]
[1741886179716,0.18325562,80525.0,80511.0,0.1242289]
[1741886180012,0.0095187,80540.0,80511.0,0.1242289]
[1741886180013,0.0095187,80540.0,80527.0,0.1242043]
[1741886180310,0.28364491,80542.0,80527.0,0.13607971]
[1741886180311,0.062096,80535.0,80527.0,0.13607971]
[1741886180509,0.1023,80536.0,80527.0,0.07397751]
[1741886180720,0.01125176,80541.0,80528.0,0.01187541]
[1741886181014,0.01125176,80541.0,80530.0,0.1241949]
[1741886181015,0.1241983,80531.0,80530.0,0.1241949]
[1741886181216,0.0620976,80533.0,80530.0,0.13607031]
[1741886181405,0.0620967,80534.0,80531.0,0.01187541]
[1741886181606,0.1241894,80537.0,80536.0,0.1241873]
[1741886181809,0.1241894,80537.0,80536.0,0.13606271]